lending/lending_fUSD_20240128
["ID","MTS","AMOUNT","RATE_DAILY","PERIOD"]
[312940167,1706471444109,-1775.61,0.00035749,5]
[312940168,1706471444120,-210.0,0.00035937,2]
[312940170,1706471444130,-150.0,0.00035937,2]
[312940171,1706471444140,-1845.24,0.00035974,5]
[312940172,1706471444150,-298.08959021,0.00036,4]
[312940173,1706471444160,-203.0,0.00036,2]
[312940174,1706471444171,-309.06,0.00036039,2]
[312940175,1706471444182,-160.73,0.00036115,2]
[312940176,1706471444191,-329.34,0.00036665,2]
[312940177,1706471444201,-154.95394842,0.00036852,2]
[312940178,1706471444211,-5000.0,0.0003689,7]
[312940179,1706471444220,-156.92235327,0.0003698,7]
[312940180,1706471444230,-160.73,0.00037111,2]
[312940181,1706471444239,-933.46816753,0.00037323,8]
[312940182,1706471444249,-518.02639125,0.00037394,2]
[312940183,1706471444258,-487.24,0.00037485,2]
[312940184,1706471444268,-157.21,0.000377,3]
[312940185,1706471444280,-157.21,0.000377,3]
[312940186,1706471444293,-157.21,0.000377,3]
[312940187,1706471444302,-157.21,0.000377,3]
[312940188,1706471444312,-215.02324953,0.00038,30]
[312940189,1706471444324,-160.73,0.00038107,2]
[312940190,1706471444334,-1000.0,0.00038137,2]
[312940191,1706471444346,-309.06,0.00038303,2]
[312940192,1706471444355,-154.95394842,0.00038559,2]
[312940193,1706471444365,-10091.68155332,0.0003888,2]
[312940194,1706471444375,-3837.24,0.00038913,2]
[312940195,1706471444386,-208.0,0.00038937,2]
[312940196,1706471444396,-282.33956905,0.0003898,2]
[312940197,1706471444405,-197.21553503,0.00039,4]
[312940198,1706471444417,-619.5353381,0.00039,4]
[312940199,1706471444427,-1430.39000108,0.00039,2]
[312940200,1706471444437,-160.73,0.00039103,2]
[312940201,1706471444446,-604.14,0.0003926,2]
[312940202,1706471444456,-518.02639125,0.00039892,2]
[312940203,1706471444466,-4056.06057751,0.0004,2]
[312940204,1706471444476,-155.0,0.0004,2]
[312940205,1706471444487,-160.73,0.000401,2]
[312940206,1706471444496,-154.95394842,0.00040266,2]
[312940207,1706471444506,-976.71698119,0.00040272,4]
[312940208,1706471444515,-309.06,0.00040567,2]
[312940209,1706471444525,-493.07102442,0.00040681,4]
[312940210,1706471444538,-76885.0,0.00040683,2]
[312940211,1706471444549,-604.14,0.00040733,2]
[312940212,1706471444558,-821.83125809,0.00040965,4]
[312940213,1706471444568,-46991.61522774,0.0004099,2]
[312940214,1706471444582,-11171.80994904,0.0004099,2]
[312940215,1706471444593,-318.0288421,0.0004099,2]
[312940216,1706471444627,-1548.49390848,0.0004099,2]
[312940217,1706471444639,-7767.53224331,0.0004099,2]
[312940218,1706471444716,-988.25804562,0.0004099,2]
[312940219,1706471444729,-711.21877473,0.0004099,2]
[312940220,1706471444855,-22827.9622108,0.0004099,2]
[312940221,1706471444868,-371.85859818,0.0004099,2]
[312940222,1706471444878,-34.38480182,0.00040991,2]
[312940223,1706471444894,-526.30699802,0.00040991,2]
[312940224,1706471446135,-178.22959207,0.00040891,16]
[312940225,1706471446145,-142.61598744,0.00040991,2]
[312940226,1706471446253,-296.69221272,0.00040991,2]
[312940227,1706471446262,-74.38162797,0.00040991,2]
[312940228,1706471447436,-250.0,0.00029909,2]
[312940229,1706471447445,-12.31499706,0.00034899,2]
[312940230,1706471447457,-564.4,0.00034899,2]
[312940237,1706471470052,19683.3904,0.00023,2]
[312940238,1706471475250,600.0,0.000227,8]
[312940239,1706471477359,1300.0,0.000228,8]
[312940240,1706471479515,2000.0,0.000229,8]
[312940244,1706471593524,-150.0,0.00022,2]
[312940245,1706471656133,237.1134879,0.0002303,6]
[312940248,1706471801378,189.69079032,0.0002303,6]
[312940249,1706471925275,150.0,0.00022,2]
[312940250,1706471940519,150.0,0.00022,2]
[312940251,1706471947116,151.75263224,0.0002303,6]
[312940252,1706472114765,353.08,0.00022,2]
[312940253,1706472257262,162.92,0.00020971,2]
[312940254,1706472257288,76.03,0.00020971,2]
[312940255,1706472447347,400.0,0.000226,8]
[312940256,1706472449437,900.0,0.000227,8]
[312940257,1706472451574,1400.0,0.000228,8]
[312940258,1706472453693,1800.0,0.000229,8]
[312940268,1706472632228,-1000.0,0.00022067,2]
[312940269,1706472632238,-106.96058979,0.00022157,2]
[312940270,1706472632286,-547.40747628,0.00022157,2]
[312940271,1706472632298,-389.06572583,0.00022157,2]
[312940272,1706472632307,-2311.48637489,0.00022158,2]
[312940273,1706472632317,-354.82,0.00022159,2]
[312940274,1706472632327,-156.3856204,0.00022448,2]
[312940275,1706472632336,-191.03,0.00022467,2]
[312940276,1706472632345,-159.85,0.00022502,2]
[312940277,1706472632355,-156.38562034,0.00022513,2]
[312940278,1706472632364,-1971.0,0.00022542,2]
[312940279,1706472632374,-279.69091136,0.00022548,2]
[312940280,1706472632384,-200.0,0.00022562,2]
[312940281,1706472632393,-156.38562034,0.00022577,2]
[312940282,1706472632404,-156.38562034,0.00022642,2]
[312940283,1706472632413,-587.87,0.00022642,2]
[312940284,1706472632422,-250.0,0.00022672,2]
[312940285,1706472632432,-156.38562034,0.00022706,2]
[312940286,1706472632442,-156.38562034,0.00022771,2]
[312940287,1706472632451,-176.4,0.00022788,2]
[312940288,1706472632463,-170.3908,0.00022799,2]
[312940289,1706472632472,-156.38562034,0.00022835,2]
[312940290,1706472632482,-156.16616152,0.00022897,2]
[312940291,1706472632491,-150.0,0.00022898,2]
[312940292,1706472632500,-500.0,0.00022899,2]
[312940293,1706472632509,-31517.72647167,0.00022899,2]
[312940294,1706472632525,-7652.70891006,0.00022899,2]
[312940295,1706472632537,-604.7260143,0.00022899,2]
[312940296,1706472632548,-3600.1079601,0.00022899,2]
[312940297,1706472632574,-547.64618999,0.00022899,2]
[312940298,1706472632586,-832.9,0.00022899,2]
[312940299,1706472632597,-301.48,0.00022899,2]
[312940300,1706472632609,-762.71,0.00022899,2]
[312940302,1706472632621,-440.0,0.00022899,2]
[312940304,1706472632633,-653.0,0.00022899,2]
[312940305,1706472632657,-677.100004,0.00022899,2]
[312940306,1706472632667,-1257.59016,0.00022899,2]
[312940307,1706472632680,-1017.36783253,0.00022899,2]
[312940308,1706472632704,-1972.83445768,0.00022899,2]
[312940309,1706472632716,-576.57357286,0.00022899,2]
[312940310,1706472632728,-746.41878368,0.00022899,2]
[312940311,1706472632740,-8416.93012981,0.00022899,2]
[312940312,1706472632819,-1358.5,0.00022899,2]
[312940313,1706472632830,-448.59695826,0.00022899,2]
[312940314,1706472632841,-410.18376816,0.00022899,2]
[312940345,1706472638272,-96089.15989825,0.00022899,2]
[312940348,1706472638383,-20537.01858865,0.00022899,2]
[312940349,1706472638393,-803.43266516,0.00022899,2]
[312940350,1706472638403,-169.31838675,0.000229,2]
[312940351,1706472638412,-5000.0,0.000229,2]
[312940352,1706472638421,-155.60609858,0.000229,2]
[312940353,1706472638430,-156.38562034,0.000229,2]
[312940354,1706472638439,-152.61840628,0.000229,2]
[312940355,1706472638448,-387.89666568,0.000229,2]
[312940356,1706472638457,-166.95423549,0.000229,2]
[312940357,1706472638469,-847.24165019,0.000229,2]
[312940358,1706472638478,-1015.84136094,0.000229,2]
[312940359,1706472638488,-1191.54006023,0.00022999,2]
[312940360,1706472638497,-281.30437133,0.00022999,2]
[312940361,1706472638506,-288.06903944,0.00022999,2]
[312940362,1706472638515,-209.26071767,0.00022999,2]
[312940363,1706472638524,-598.62692075,0.00022999,2]
[312940364,1706472638533,-264.59547339,0.00022999,2]
[312940365,1706472638543,-319.23605445,0.00022999,2]
[312940366,1706472638552,-380.31380972,0.00022999,2]
[312940367,1706472638561,-608.07641091,0.00022999,2]
[312940368,1706472638570,-500.0,0.00022999,2]
[312940369,1706472638579,-500.0,0.00022999,2]
[312940370,1706472638589,-164.59804189,0.00022999,2]
[312940371,1706472638598,-500.0,0.00022999,2]
[312940372,1706472638610,-500.0,0.00022999,2]
[312940373,1706472638619,-500.0,0.00022999,2]
[312940374,1706472638628,-465.41258009,0.00022999,2]
[312940375,1706472638637,-386.11469289,0.00022999,2]
[312940376,1706472638646,-301.69200246,0.00022999,2]
[312940377,1706472638655,-500.0,0.00022999,2]
[312940378,1706472638664,-500.0,0.00022999,2]
[312940379,1706472638673,-177.48644664,0.00022999,2]
[312940380,1706472638682,-500.0,0.00022999,2]
[312940381,1706472638695,-169892.53770023,0.00023,2]
[312940382,1706472638707,-68012.99488165,0.00023,2]
[312940383,1706472638720,-73001.45531397,0.00023,2]
[312940384,1706472638731,-153414.68836761,0.00023,2]
[312940385,1706472638744,-2776.99734937,0.00023,2]
[312940386,1706472638755,-808.75030777,0.00023,2]
[312940387,1706472638768,-741.27723955,0.00023,2]
[312940388,1706472638780,-420.8888349,0.00023,2]
[312940389,1706472638795,-179132.43159192,0.00023,2]
[312940390,1706472638814,-1418639.16477933,0.00023,2]
[312940391,1706472638824,-744086.43437581,0.00023,2]
[312940393,1706472638833,-347.73672192,0.0002313,2]
[312940395,1706472638842,-2000.0,0.00023214,2]
[312940397,1706472638851,-238.95,0.00023235,2]
[312940398,1706472638861,-263.94731272,0.000241,2]
[312940400,1706472638870,-191.03,0.00024111,2]
[312940401,1706472638878,-500.0,0.00024414,2]
[312940402,1706472638888,-23900.0,0.000246,2]
[312940403,1706472638897,-250.0,0.00024658,2]
[312940404,1706472638906,-150.0,0.0002474,2]
[312940405,1706472638915,-1000.0,0.00024826,2]
[312940406,1706472638925,-935.55189282,0.00025,2]
[312940407,1706472638934,-1587.22750165,0.00025,2]
[312940408,1706472638943,-1903.74995284,0.00025,2]
[312940409,1706472638952,-210.0,0.00025188,2]
[312940410,1706472638964,-238.95,0.00025499,2]
[312940411,1706472638973,-803.43266509,0.00025633,2]
[312940412,1706472638982,-191.03,0.00025755,2]
[312940413,1706472638991,-150.0,0.00026079,2]
[312940414,1706472639000,-155.60609853,0.00026085,2]
[312940415,1706472639010,-170.76,0.00026112,2]
[312940416,1706472639019,-535.21760683,0.00026174,2]
[312940417,1706472639028,-162.01,0.00027397,2]
[312940418,1706472639037,-191.03,0.00027399,2]
[312940419,1706472639047,-1000.0,0.00027584,2]
[312940420,1706472639057,-964.72,0.00027671,2]
[312940421,1706472639066,-238.95,0.00027763,2]
[312940422,1706472639076,-359.25204908,0.00027874,2]
[312940423,1706472639086,-690.39351064,0.00028,2]
[312940424,1706472639096,-129520.46721215,0.00028,2]
[312940425,1706472639106,-803.0257,0.00028089,2]
[312940426,1706472639116,-803.43266509,0.00028368,4]
[312940427,1706472639125,-162.01,0.00028425,2]
[312940428,1706472639135,-964.72,0.00028695,2]
[312940429,1706472639144,-152.61840624,0.00028733,2]
[312940430,1706472639154,-2245.3057,0.00028899,2]
[312940431,1706472639163,-244052.4811,0.00028899,2]
[312940432,1706472639173,-1000.0,0.00028899,2]
[312940433,1706472639182,-191.03,0.00029043,2]
[312940434,1706472639191,-1844.0,0.000292,2]
[312940435,1706472639200,-155.60609853,0.0002927,2]
[312940436,1706472639209,-162.01,0.00029452,2]
[312940437,1706472639221,-964.72,0.00029719,2]
[312940438,1706472639231,-175.84884344,0.000298,2]
[312940439,1706472639240,-1844.68218607,0.00029907,4]
[312940440,1706472639249,-905.18762355,0.0003,4]
[312940441,1706472639259,-53229.67069352,0.0003,4]
[312940442,1706472639267,-3000.0,0.0003,2]
[312940443,1706472639276,-3000.0,0.0003,2]
[312940444,1706472639285,-385.66749,0.0003,2]
[312940445,1706472639295,-238.95,0.00030027,2]
[312940446,1706472639304,-157.44,0.00030137,2]
[312940447,1706472639313,-3000.0,0.0003022,2]
[312940448,1706472639323,-385.66749,0.0003029,2]
[312940449,1706472639332,-1000.0,0.00030343,2]
[312940450,1706472639342,-162.01,0.00030479,2]
[312940451,1706472639351,-3000.0,0.0003054,2]
[312940452,1706472639360,-191.03,0.00030687,2]
[312940453,1706472639369,-964.72,0.00030743,2]
[312940454,1706472639377,-3000.0,0.0003084,2]
[312940455,1706472639386,-387.89666567,0.0003084,2]
[312940456,1706472639396,-1031.33762509,0.0003084,2]
[312940457,1706472639405,-385.66749,0.0003092,2]
[312940458,1706472639414,-354.82,0.00031023,2]
[312940459,1706472639423,-803.43266509,0.00031102,5]
[312940460,1706472639432,-3000.0,0.0003116,2]
[312940461,1706472639441,-170.76,0.00031334,2]
[312940462,1706472639450,-162.01,0.00031507,2]
[312940463,1706472639459,-385.66749,0.0003154,2]
[312940464,1706472639472,-180.0,0.00031644,2]
[312940465,1706472639481,-964.72,0.00031767,2]
[312940466,1706472639490,-16897.3162272,0.000318,3]
[312940467,1706472639499,-7046.01,0.00031836,2]
[312940468,1706472639509,-375.20474217,0.00032,2]
[312940469,1706472639518,-385.66749,0.0003216,2]
[312940470,1706472639527,-238.95,0.00032291,2]
[312940471,1706472639536,-155.60609853,0.00032455,4]
[312940472,1706472639546,-202.4125195,0.000325,2]
[312940473,1706472639556,-162.01,0.00032534,2]
[312940474,1706472639566,-385.66749,0.0003279,2]
[312940475,1706472639575,-225.2151842,0.0003279,7]
[312940476,1706472639584,-150.0,0.00032799,2]
[312940477,1706472639594,-196.7700635,0.00032799,2]
[312940478,1706472639603,-466857.30226503,0.000328,2]
[312940479,1706472639615,-3368.08959021,0.000328,2]
[312940480,1706472639726,-831.85990445,0.000328,2]
[312940481,1706472639742,-416.41116,0.000328,2]
[312940482,1706472639753,-1108.77575039,0.000328,2]
[312940483,1706472639764,-851.18,0.000328,2]
[312940484,1706472639776,-1037.7367,0.000328,2]
[312940486,1706472640832,-1596.30909,0.00022898,2]
[312940487,1706472640843,-1362.86,0.00022898,2]
[312940488,1706472641553,-553.54469613,0.00022898,2]
[312940489,1706472641573,-508.90128622,0.00022898,2]
[312940490,1706472641584,-4177.49999999,0.00022898,2]
[312940491,1706472641612,-61391.33842165,0.00022898,2]
[312940492,1706472641692,-2206.78429854,0.00022898,2]
[312940521,1706472643378,-175056.41700647,0.00022898,2]
[312940522,1706472643388,-1015.84136094,0.0003084,2]
[312940523,1706472643398,-411076.94255911,0.000328,2]
[312940524,1706472643407,-164.28,0.00032873,2]
[312940525,1706472643416,-2300.0,0.000329,12]
[312940526,1706472643426,-203.0,0.00033,2]
[312940527,1706472643435,-404.42543092,0.00033045,4]
[312940528,1706472643445,-1000.0,0.00033101,2]
[312940529,1706472643454,-434.66039764,0.00033154,2]
[312940530,1706472643466,-393.83447512,0.000335,2]
[312940531,1706472643475,-162.01,0.00033562,2]
[312940532,1706472643485,-803.43266509,0.00033836,6]
[312940533,1706472643494,-507.45614282,0.00034,4]
[312940534,1706472643503,-258.0,0.00034133,2]
[312940535,1706472643513,-238.95,0.00034554,2]
[312940536,1706472643522,-152.61840624,0.00034567,2]
[312940537,1706472643532,-162.01,0.00034589,2]
[312940538,1706472643541,-363.79682294,0.00034898,4]
[312940539,1706472643551,-313.78523545,0.00034898,4]
[312940540,1706472643560,-200.0,0.00034899,2]
[312940541,1706472643570,-1966.90599291,0.00034899,2]
[312940542,1706472643579,-5628.25619398,0.00034899,2]
[312940543,1706472643589,-685.33580561,0.00034899,4]
[312940544,1706472643598,-500.0,0.00034899,2]
[312940545,1706472643607,-685.33580561,0.00034899,4]
[312940546,1706472643617,-685.33580561,0.00034899,4]
[312940547,1706472643626,-10653.02373515,0.000349,2]
[312940548,1706472643636,-525.77747901,0.000349,2]
[312940549,1706472643646,-525.77747895,0.000349,2]
[312940550,1706472643655,-525.77747895,0.000349,2]
[312940552,1706472643664,-1738.95893569,0.0003499,2]
[312940554,1706472643674,-1222.06794728,0.00035,4]
[312940555,1706472643684,-5000.0,0.00035,3]
[312940556,1706472643694,-155.0,0.00035,2]
[312940557,1706472643705,-155.0,0.00035,2]
[312940558,1706472643716,-1263.30372367,0.00035,4]
[312940559,1706472643725,-62607.71872217,0.00035,2]
[312940560,1706472643734,-1487.91383994,0.00035,2]
[312940561,1706472643745,-525.03910055,0.00035,2]
[312940562,1706472643754,-541.82245755,0.00035,2]
[312940563,1706472643764,-14606.11484683,0.00035,2]
[312940564,1706472643775,-603.0,0.00035068,5]
[312940565,1706472643784,-162.01,0.00035616,2]
[312940566,1706472643794,-155.60609853,0.0003564,8]
[312940567,1706472643803,-204.79467671,0.000357,2]
[312940568,1706472643812,-1784.87,0.000357,7]
[312940569,1706472643823,-2253.49,0.000357,7]
[312940570,1706472643832,-525.77747895,0.00035757,2]
[312940571,1706472643841,-803.43266509,0.0003657,8]
[312940572,1706472643851,-238.95,0.00036818,2]
[312940573,1706472643860,-5000.0,0.0003689,7]
[312940574,1706472643870,-258.0,0.00037597,2]
[312940575,1706472643879,-196.7700635,0.00037698,2]
[312940576,1706472643889,-150.0,0.00037698,2]
[312940577,1706472643899,-55836.60783188,0.00037699,2]
[312940588,1706472646531,-4190.6153014,0.00037699,2]
[312940589,1706472646656,-940.82,0.00037699,2]
[312940604,1706473004726,1844.68218607,0.00022697,4]
[312940622,1706473831486,-231.00875366,0.00022299,2]
[312940623,1706473831496,-265.0,0.00022299,2]
[312940624,1706473831505,-702.88124634,0.000223,2]
[312940625,1706473831537,-37.80970632,0.000223,2]
[312940626,1706473831546,-298.17399244,0.00022384,2]
[312940627,1706473831556,-29.3684073,0.00022385,2]
[312940628,1706473831568,-970.6315927,0.00022385,2]
[312940629,1706473831577,-1239.1471,0.00022499,2]
[312940630,1706473831587,-686.73384493,0.00022499,2]
[312940631,1706473831596,-150.0,0.00022598,2]
[312940632,1706473831606,-29242.22521915,0.00022599,2]
[312940633,1706473831642,-42209.13140497,0.00022599,2]
[312940634,1706473832985,-1175.3,0.00022599,2]
[312940693,1706473837498,-18236.50337328,0.00022599,2]
[312940694,1706473837511,-1144.6153312,0.00022599,2]
[312940695,1706473837523,-282.25751733,0.00022599,2]
[312940696,1706473837535,-879.47774667,0.00022599,2]
[312940697,1706473837560,-8177.61565218,0.00022599,2]
[312940698,1706473837572,-278.68922613,0.00022599,2]
[312940699,1706473837583,-129641.09134721,0.00022599,2]
[312940700,1706473837595,-4612.53602164,0.00022599,2]
[312940701,1706473837620,-508.620414,0.00022599,2]
[312940702,1706473837631,-384.9054171,0.00022599,2]
[312940703,1706473837642,-2331.12457311,0.00022599,2]
[312940704,1706473837654,-567.36226103,0.00022599,2]
[312940705,1706473837666,-720.10049987,0.00022599,2]
[312940706,1706473837678,-645.5925653,0.00022599,2]
[312940707,1706473837690,-1330.54168592,0.00022599,2]
[312940708,1706473837703,-74499.88464023,0.00022599,2]
[312940709,1706473837728,-28738.08850368,0.00022599,2]
[312940710,1706473837738,-251.654,0.00022599,2]
[312940711,1706473837747,-760.33892735,0.00022689,2]
[312940712,1706473837756,-663.17595373,0.00022699,2]
[312940713,1706473837765,-30879.4459,0.00022699,2]
[312940714,1706473837773,-7118.4551,0.00022699,2]
[312940715,1706473837782,-320.4961,0.00022699,2]
[312940716,1706473837791,-803.0257,0.00022699,2]
[312940717,1706473837800,-2245.3057,0.00022699,2]
[312940718,1706473837809,-1000.0,0.00022699,2]
[312940719,1706473837818,-4862.93987262,0.00022699,2]
[312940720,1706473837830,-15790.29117174,0.00022699,2]
[312940721,1706473837845,-49960.1469397,0.00022699,2]
[312940722,1706473837859,-67426.56079422,0.00022699,2]
[312940723,1706473837870,-106012.54232172,0.00022699,2]
[312940724,1706473837879,-215.397955,0.00022775,2]
[312940725,1706473837889,-402.00805127,0.00022798,2]
[312940726,1706473837898,-881.7444,0.00022799,2]
[312940727,1706473837908,-1000.0,0.00022799,2]
[312940728,1706473837917,-1946.62,0.00022799,2]
[312940729,1706473837926,-155.52969483,0.00024,2]
[312940730,1706473837935,-201.54460435,0.00024,2]
[312940731,1706473837944,-326.08,0.00024277,2]
[312940732,1706473837954,-210.0,0.00024858,2]
[312940733,1706473837963,-499.99,0.00024968,2]
[312940734,1706473837972,-510.59709725,0.00025,2]
[312940735,1706473837981,-935.55189282,0.00025,2]
[312940736,1706473837991,-1903.74995284,0.00025,2]
[312940737,1706473838000,-167.72726834,0.00025,2]
[312940738,1706473838009,-202.44241992,0.00025,2]
[312940739,1706473838018,-207.73797985,0.00025,2]
[312940740,1706473838027,-1587.22750165,0.00025,2]
[312940741,1706473838036,-1251.18330209,0.00025,2]
[312940742,1706473838046,-158.87277204,0.00025,2]
[312940743,1706473838059,-303.81393503,0.00025,2]
[312940744,1706473838068,-1000.0,0.00025183,2]
[312940745,1706473838077,-6999.65,0.0002588,2]
[312940746,1706473838281,-2000.0,0.00025899,2]
[312940747,1706473838292,-10000.0,0.00025958,2]
[312940748,1706473838301,-150.01,0.00026,2]
[312940749,1706473838310,-250.0,0.00026056,2]
[312940750,1706473838319,-250.0,0.00026088,2]
[312940751,1706473838328,-23900.0,0.00026088,2]
[312940752,1706473838338,-232.85,0.00026107,2]
[312940753,1706473838349,-500.0,0.00026159,2]
[312940754,1706473838358,-150.0,0.00026191,2]
[312940755,1706473838367,-200.0,0.00026284,2]
[312940756,1706473838377,-2287.81,0.00026284,2]
[312940757,1706473838386,-170.76,0.00026493,2]
[312940758,1706473838395,-487.57,0.00026511,2]
[312940759,1706473838404,-250.0,0.00026526,2]
[312940760,1706473838413,-326.08,0.00026541,2]
[312940761,1706473838422,-1174.34,0.00026658,2]
[312940762,1706473838431,-160.81,0.00026725,2]
[312940763,1706473838441,-686.73384488,0.00027072,3]
[312940764,1706473838451,-160.81,0.00027073,2]
[312940765,1706473838460,-167.54,0.00027266,2]
[312940766,1706473838470,-293.0,0.00027343,2]
[312940767,1706473838479,-191.68,0.00027397,2]
[312940768,1706473838487,-30397.22817135,0.00027397,2]
[312940769,1706473838689,-834.87280297,0.00027397,2]
[312940770,1706473838705,-3461.55398001,0.00027397,2]
[312940771,1706473838717,-604.46504567,0.00027397,2]
[312940772,1706473838726,-609.90854,0.00027397,2]
[312940773,1706473838737,-591.5,0.00027397,2]
[312940774,1706473838747,-417.75203429,0.00027397,2]
[312940789,1706473840041,-250.0,0.00026284,2]
[312940790,1706473840054,-733.57981081,0.00027397,2]
[312940791,1706473840065,-392.74503949,0.00027397,2]
[312940792,1706473840237,-533.35245504,0.00027397,2]
[312940793,1706473840249,-1634.92347253,0.00027397,2]
[312940794,1706473840279,-539.30699596,0.00027397,2]
[312940795,1706473840290,-322.72165188,0.00027397,2]
[312940796,1706473840299,-160.81,0.00027421,2]
[312940797,1706473840308,-2076.46834813,0.00027556,2]
[312940798,1706473840320,-3699.32165187,0.00027556,2]
[312940799,1706473840329,-150.0,0.00027578,2]
[312940800,1706473840339,-10000.0,0.00027671,2]
[312940801,1706473840348,-5775.79,0.00027714,2]
[312940802,1706473840357,-160.81,0.00027769,2]
[312940803,1706473840367,-191.68,0.0002783,2]
[312940804,1706473840377,-5775.79,0.00027872,2]
[312940805,1706473840386,-663.17595373,0.000279,2]
[312940806,1706473840395,-2287.81,0.00027928,2]
[312940807,1706473840404,-1000.0,0.00027981,2]
[312940808,1706473840413,-690.39351064,0.00028,2]
[312940809,1706473840423,-6147.39256207,0.00028,2]
[312940810,1706473840432,-5775.79,0.0002803,2]
[312940811,1706473840441,-160.81,0.00028118,2]
[312940812,1706473840451,-5775.79,0.00028189,2]
[312940813,1706473840460,-191.68,0.00028262,2]
[312940814,1706473840470,-5775.79,0.00028347,2]
[312940815,1706473840479,-2194.0,0.000285,2]
[312940816,1706473840489,-5775.79,0.00028505,2]
[312940817,1706473840499,-838.16045796,0.00028564,2]
[312940818,1706473840508,-5775.79,0.00028664,2]
[312940819,1706473840518,-191.68,0.00028695,2]
[312940820,1706473840527,-10000.0,0.00028695,2]
[312940821,1706473840536,-326.08,0.00028805,2]
[312940822,1706473840546,-5775.79,0.00028822,2]
[312940823,1706473840554,-150.0,0.00028948,2]
[312940824,1706473840564,-203.0,0.00029,2]
[312940825,1706473840573,-785.3251218,0.00029,2]
[312940826,1706473840583,-785.3251218,0.00029,2]
[312940827,1706473840593,-785.3251218,0.00029,2]
[312940828,1706473840603,-785.3251218,0.00029,2]
[312940829,1706473840612,-785.3251218,0.00029,2]
[312940830,1706473840621,-785.3251218,0.00029,2]
[312940831,1706473840631,-785.3251218,0.00029,2]
[312940832,1706473840642,-785.3251218,0.00029,2]
[312940833,1706473840651,-785.3251218,0.00029,2]
[312940834,1706473840661,-785.3251218,0.00029,2]
[312940835,1706473840671,-785.3251218,0.00029,2]
[312940836,1706473840680,-785.3251218,0.00029,2]
[312940837,1706473840688,-785.3251218,0.00029,2]
[312940838,1706473840698,-785.3251218,0.00029,2]
[312940839,1706473840707,-785.3251218,0.00029,2]
[312940840,1706473840717,-785.3251218,0.00029,2]
[312940841,1706473840726,-785.3251218,0.00029,2]
[312940842,1706473840735,-785.3251218,0.00029,2]
[312940843,1706473840745,-785.3251218,0.00029,2]
[312940844,1706473840754,-785.3251218,0.00029,2]
[312940845,1706473840764,-785.3251218,0.00029,2]
[312940846,1706473840773,-785.3251218,0.00029,2]
[312940847,1706473840782,-785.3251218,0.00029,2]
[312940848,1706473840792,-785.3251218,0.00029,2]
[312940849,1706473840803,-785.3251218,0.00029,2]
[312940850,1706473840813,-785.3251218,0.00029,2]
[312940851,1706473840822,-785.3251218,0.00029,2]
[312940852,1706473840833,-785.3251218,0.00029,2]
[312940853,1706473840843,-785.3251218,0.00029,2]
[312940854,1706473840852,-785.3251218,0.00029,2]
[312940855,1706473840862,-785.3251218,0.00029,2]
[312940856,1706473840871,-785.3251218,0.00029,2]
[312940857,1706473840880,-785.3251218,0.00029,2]
[312940858,1706473840889,-785.3251218,0.00029,2]
[312940859,1706473840899,-785.3251218,0.00029,2]
[312940860,1706473840908,-785.3251218,0.00029,2]
[312940861,1706473840919,-785.3251218,0.00029,2]
[312940862,1706473840930,-785.3251218,0.00029,2]
[312940863,1706473840940,-785.3251218,0.00029,2]
[312940864,1706473840951,-785.3251218,0.00029,2]
[312940865,1706473840961,-785.3251218,0.00029,2]
[312940866,1706473840970,-785.3251218,0.00029,2]
[312940867,1706473840979,-785.3251218,0.00029,2]
[312940868,1706473840988,-785.3251218,0.00029,2]
[312940869,1706473840997,-785.3251218,0.00029,2]